[Event "Titled Tuesday Blitz June 28 Early 2022"]
[White "Polster, Christian"]
[Black "Melikhov, Evgeny V."]
[WhiteFideId "12965081"]
[BlackFideId "4122046"]
[WhiteElo "2293"]
[BlackElo "1904"]
[Result "1-0"]
[Round "06"]
[TimeControl "180+1"]
[Date "2022.06.28"]
[WhiteClock "0:00:04"]
[BlackClock "0:00:04"]

1. e4 {[%clk 0:02:58]}  c5 {[%clk 0:02:58]} 2. Nc3 {[%clk 0:02:58]}  Nc6 {[%clk 0:02:58]} 3. Nge2 {[%clk 0:02:57]}  g6 {[%clk 0:02:58]} 4. d4 {[%clk 0:02:57]}  cxd4 {[%clk 0:02:58]} 5. Nxd4 {[%clk 0:02:58]}  Bg7 {[%clk 0:02:56]} 6. Be3 {[%clk 0:02:57]}  d6 {[%clk 0:02:52]} 7. f3 {[%clk 0:02:51]}  Nf6 {[%clk 0:02:48]} 8. Qd2 {[%clk 0:02:50]}  Nxd4 {[%clk 0:02:48]} 9. Bxd4 {[%clk 0:02:50]}  O-O {[%clk 0:02:48]} 10. Bc4 {[%clk 0:02:50]}  Be6 {[%clk 0:02:42]} 11. Bb3 {[%clk 0:02:43]}  Qc8 {[%clk 0:02:28]} 12. O-O-O {[%clk 0:02:41]}  Bxb3 {[%clk 0:02:25]} 13. cxb3 {[%clk 0:02:40]}  Nd7 {[%clk 0:02:21]} 14. Bxg7 {[%clk 0:02:36]}  Kxg7 {[%clk 0:02:21]} 15. Kb1 {[%clk 0:02:34]}  Qc5 {[%clk 0:02:17]} 16. g4 {[%clk 0:02:22]}  Rac8 {[%clk 0:02:11]} 17. h4 {[%clk 0:02:21]}  h6 {[%clk 0:02:04]} 18. f4 {[%clk 0:02:09]}  b5 {[%clk 0:01:45]} 19. Rc1 {[%clk 0:01:29]}  Qb4 {[%clk 0:01:34]} 20. h5 {[%clk 0:01:22]}  Rxc3 {[%clk 0:01:25]} 21. Qxc3+ {[%clk 0:01:22]}  Qxc3 {[%clk 0:01:25]} 22. Rxc3 {[%clk 0:01:17]}  Nc5 {[%clk 0:01:23]} 23. e5 {[%clk 0:01:10]}  b4 {[%clk 0:01:16]} 24. Rc4 {[%clk 0:01:09]}  a5 {[%clk 0:01:16]} 25. Rd1 {[%clk 0:01:01]}  Re8 {[%clk 0:01:04]} 26. f5 {[%clk 0:00:48]}  g5 {[%clk 0:00:41]} 27. exd6 {[%clk 0:00:31]}  exd6 {[%clk 0:00:40]} 28. Rxd6 {[%clk 0:00:32]}  Re1+ {[%clk 0:00:39]} 29. Rc1 {[%clk 0:00:29]}  Re5 {[%clk 0:00:37]} 30. f6+ {[%clk 0:00:21]}  Kh7 {[%clk 0:00:37]} 31. Rc6 {[%clk 0:00:16]}  Ne6 {[%clk 0:00:35]} 32. Rd1 {[%clk 0:00:13]}  Rc5 {[%clk 0:00:20]} 33. Rxc5 {[%clk 0:00:12]}  Nxc5 {[%clk 0:00:20]} 34. Rd5 {[%clk 0:00:12]}  Ne4 {[%clk 0:00:20]} 35. Rxa5 {[%clk 0:00:11]}  Nxf6 {[%clk 0:00:21]} 36. Rf5 {[%clk 0:00:11]}  Kg7 {[%clk 0:00:20]} 37. a4 {[%clk 0:00:09]}  bxa3 {[%clk 0:00:20]} 38. bxa3 {[%clk 0:00:09]}  Nxg4 {[%clk 0:00:20]} 39. a4 {[%clk 0:00:09]}  Ne3 {[%clk 0:00:20]} 40. Re5 {[%clk 0:00:08]}  Ng4 {[%clk 0:00:17]} 41. Re2 {[%clk 0:00:07]}  f5 {[%clk 0:00:17]} 42. a5 {[%clk 0:00:07]}  f4 {[%clk 0:00:18]} 43. a6 {[%clk 0:00:07]}  f3 {[%clk 0:00:18]} 44. Rd2 {[%clk 0:00:07]}  f2 {[%clk 0:00:17]} 45. Rxf2 {[%clk 0:00:07]}  Nxf2 {[%clk 0:00:17]} 46. a7 {[%clk 0:00:08]}  g4 {[%clk 0:00:17]} 47. a8=Q {[%clk 0:00:08]}  Nh3 {[%clk 0:00:17]} 48. Qe4 {[%clk 0:00:07]}  Ng5 {[%clk 0:00:15]} 49. Qxg4 {[%clk 0:00:06]}  Kf6 {[%clk 0:00:16]} 50. Qf4+ {[%clk 0:00:06]}  Ke6 {[%clk 0:00:16]} 51. b4 {[%clk 0:00:06]}  Kd5 {[%clk 0:00:15]} 52. Kc2 {[%clk 0:00:04]}  Ne4 {[%clk 0:00:14]} 53. Kd3 {[%clk 0:00:04]}  Nd6 {[%clk 0:00:13]} 54. Qd4+ {[%clk 0:00:04]}  Kc6 {[%clk 0:00:13]} 55. Qc5+ {[%clk 0:00:04]}  Kd7 {[%clk 0:00:13]} 56. Kd4 {[%clk 0:00:04]}  Nc8 {[%clk 0:00:12]} 57. Ke5 {[%clk 0:00:04]}  Kd8 {[%clk 0:00:09]} 58. Ke6 {[%clk 0:00:04]}  Nb6 {[%clk 0:00:04]} 59. Qxb6+ {[%clk 0:00:04]}  Kc8 {[%clk 0:00:04]} 60. Qc6+ {[%clk 0:00:04]}  Kb8 {[%clk 0:00:04]} 61. Qd7 {[%clk 0:00:03]}  Ka8 {[%clk 0:00:04]} 62. b5 {[%clk 0:00:04]} 1-0


[Site "https://www.chess.com"]

[Event "Titled Tuesday Blitz June 28 Early 2022"]
[White "Preotu, Razvan"]
[Black "Orlov, Georgi"]
[WhiteFideId "2613280"]
[BlackFideId "2011271"]
[WhiteElo "2407"]
[BlackElo "2545"]
[Result "0-1"]
[Round "06"]
[TimeControl "180+1"]
[Date "2022.06.28"]
[WhiteClock "0:00:03"]
[BlackClock "0:00:31"]

1. e4 {[%clk 0:03:00]}  e6 {[%clk 0:02:55]} 2. d4 {[%clk 0:03:00]}  d5 {[%clk 0:02:55]} 3. Nc3 {[%clk 0:03:00]}  Bb4 {[%clk 0:02:54]} 4. e5 {[%clk 0:03:00]}  c5 {[%clk 0:02:54]} 5. a3 {[%clk 0:03:01]}  Bxc3+ {[%clk 0:02:53]} 6. bxc3 {[%clk 0:03:02]}  Qc7 {[%clk 0:02:52]} 7. Rb1 {[%clk 0:02:47]}  Bd7 {[%clk 0:02:39]} 8. Qg4 {[%clk 0:02:27]}  Kf8 {[%clk 0:02:38]} 9. Bd3 {[%clk 0:01:15]}  c4 {[%clk 0:02:36]} 10. Be2 {[%clk 0:01:14]}  Ba4 {[%clk 0:02:29]} 11. Bd1 {[%clk 0:01:15]}  Nc6 {[%clk 0:02:18]} 12. Nf3 {[%clk 0:01:01]}  Nge7 {[%clk 0:02:10]} 13. h4 {[%clk 0:01:01]}  h5 {[%clk 0:01:57]} 14. Qf4 {[%clk 0:00:50]}  Nf5 {[%clk 0:01:53]} 15. Ng5 {[%clk 0:00:49]}  g6 {[%clk 0:01:47]} 16. g4 {[%clk 0:00:38]}  hxg4 {[%clk 0:01:46]} 17. Bxg4 {[%clk 0:00:35]}  Bxc2 {[%clk 0:01:43]} 18. Rb2 {[%clk 0:00:36]}  Bd3 {[%clk 0:01:41]} 19. h5 {[%clk 0:00:36]}  Qa5 {[%clk 0:01:17]} 20. Rxb7 {[%clk 0:00:32]}  Qxc3+ {[%clk 0:01:17]} 21. Bd2 {[%clk 0:00:33]}  Qa1+ {[%clk 0:01:14]} 22. Bd1 {[%clk 0:00:34]}  Ncxd4 {[%clk 0:01:10]} 23. Bb4+ {[%clk 0:00:25]}  Kg8 {[%clk 0:01:10]} 24. Nxf7 {[%clk 0:00:16]}  Be2 {[%clk 0:00:47]} 25. Kd2 {[%clk 0:00:02]}  Qb2+ {[%clk 0:00:36]} 26. Ke1 {[%clk 0:00:03]}  Bxd1 {[%clk 0:00:31]} 0-1


[Site "https://www.chess.com"]

[Event "Titled Tuesday Blitz June 28 Early 2022"]
[White "Przybylski, Wojciech"]
[Black "Madaminov, Mukhiddin"]
[WhiteFideId "1117599"]
[BlackFideId "14210703"]
[WhiteElo "2133"]
[BlackElo "1916"]
[Result "1/2-1/2"]
[Round "06"]
[TimeControl "180+1"]
[Date "2022.06.28"]
[WhiteClock "0:00:03"]
[BlackClock "0:00:28"]

1. e4 {[%clk 0:02:59]}  e6 {[%clk 0:02:59]} 2. d4 {[%clk 0:02:55]}  d5 {[%clk 0:03:00]} 3. Nc3 {[%clk 0:02:55]}  Nf6 {[%clk 0:03:00]} 4. e5 {[%clk 0:02:52]}  Nfd7 {[%clk 0:03:00]} 5. f4 {[%clk 0:02:52]}  c5 {[%clk 0:03:01]} 6. Nf3 {[%clk 0:02:53]}  Nc6 {[%clk 0:03:02]} 7. Be3 {[%clk 0:02:53]}  Qb6 {[%clk 0:03:02]} 8. Qd2 {[%clk 0:02:52]}  Qxb2 {[%clk 0:03:02]} 9. Rb1 {[%clk 0:02:52]}  Qa3 {[%clk 0:03:02]} 10. Be2 {[%clk 0:02:42]}  c4 {[%clk 0:02:53]} 11. Nb5 {[%clk 0:02:33]}  c3 {[%clk 0:02:44]} 12. Nxc3 {[%clk 0:02:19]}  Bb4 {[%clk 0:02:42]} 13. Rb3 {[%clk 0:02:19]}  Qa5 {[%clk 0:02:42]} 14. O-O {[%clk 0:02:09]}  O-O {[%clk 0:02:42]} 15. a3 {[%clk 0:02:06]}  Bxc3 {[%clk 0:02:38]} 16. Qxc3 {[%clk 0:02:05]}  Qxc3 {[%clk 0:02:37]} 17. Rxc3 {[%clk 0:02:06]}  Nb6 {[%clk 0:02:38]} 18. f5 {[%clk 0:02:04]}  exf5 {[%clk 0:02:37]} 19. Nd2 {[%clk 0:01:57]}  Be6 {[%clk 0:02:36]} 20. Rb3 {[%clk 0:01:50]}  Rac8 {[%clk 0:02:31]} 21. Rb5 {[%clk 0:01:44]}  h6 {[%clk 0:02:27]} 22. Bd3 {[%clk 0:01:43]}  g6 {[%clk 0:02:16]} 23. Bxh6 {[%clk 0:01:40]}  Nxd4 {[%clk 0:02:17]} 24. Rb4 {[%clk 0:01:35]}  Nc6 {[%clk 0:02:13]} 25. Rh4 {[%clk 0:01:34]}  Nxe5 {[%clk 0:02:06]} 26. Bxf8 {[%clk 0:01:28]}  Kxf8 {[%clk 0:02:05]} 27. Rh8+ {[%clk 0:01:22]}  Ke7 {[%clk 0:02:05]} 28. Rxc8 {[%clk 0:01:22]}  Bxc8 {[%clk 0:02:05]} 29. Nf3 {[%clk 0:01:22]}  Nxf3+ {[%clk 0:02:05]} 30. gxf3 {[%clk 0:01:21]}  f4 {[%clk 0:02:03]} 31. Rb1 {[%clk 0:01:13]}  Kd6 {[%clk 0:01:59]} 32. Kf2 {[%clk 0:01:11]}  Nd7 {[%clk 0:01:43]} 33. h4 {[%clk 0:01:08]}  Nc5 {[%clk 0:01:39]} 34. Rb4 {[%clk 0:01:06]}  Ke5 {[%clk 0:01:39]} 35. Ke2 {[%clk 0:01:00]}  b6 {[%clk 0:01:37]} 36. Rb1 {[%clk 0:00:57]}  d4 {[%clk 0:01:29]} 37. Rh1 {[%clk 0:00:50]}  Be6 {[%clk 0:01:11]} 38. h5 {[%clk 0:00:48]}  gxh5 {[%clk 0:01:11]} 39. Rxh5+ {[%clk 0:00:49]}  f5 {[%clk 0:01:09]} 40. Rh7 {[%clk 0:00:47]}  a5 {[%clk 0:01:08]} 41. Rh8 {[%clk 0:00:45]}  Na4 {[%clk 0:01:06]} 42. Rd8 {[%clk 0:00:40]}  Nc3+ {[%clk 0:01:05]} 43. Kd2 {[%clk 0:00:35]}  Bd5 {[%clk 0:00:58]} 44. Re8+ {[%clk 0:00:34]}  Kd6 {[%clk 0:00:56]} 45. Rf8 {[%clk 0:00:22]}  Bxf3 {[%clk 0:00:50]} 46. Rxf5 {[%clk 0:00:21]}  Nd5 {[%clk 0:00:48]} 47. Bc4 {[%clk 0:00:16]}  Ne3 {[%clk 0:00:48]} 48. Rf6+ {[%clk 0:00:14]}  Ke5 {[%clk 0:00:41]} 49. Re6+ {[%clk 0:00:12]}  Kf5 {[%clk 0:00:42]} 50. Ba2 {[%clk 0:00:12]}  Bg2 {[%clk 0:00:31]} 51. Rxb6 {[%clk 0:00:10]}  f3 {[%clk 0:00:32]} 52. Rb8 {[%clk 0:00:09]}  Kf4 {[%clk 0:00:28]} 53. Rf8+ {[%clk 0:00:08]}  Kg3 {[%clk 0:00:28]} 54. Bd5 {[%clk 0:00:06]}  Nxd5 {[%clk 0:00:28]} 55. Rg8+ {[%clk 0:00:05]}  Kh2 {[%clk 0:00:27]} 56. Rh8+ {[%clk 0:00:04]}  Kg1 {[%clk 0:00:28]} 57. Kd3 {[%clk 0:00:02]}  f2 {[%clk 0:00:28]} 58. Rf8 {[%clk 0:00:02]}  f1=Q+ {[%clk 0:00:19]} 59. Rxf1+ {[%clk 0:00:02]}  Kxf1 {[%clk 0:00:20]} 60. Kxd4 {[%clk 0:00:03]}  Ke2 {[%clk 0:00:21]} 61. c4 {[%clk 0:00:03]}  Ne7 {[%clk 0:00:21]} 62. Kc5 {[%clk 0:00:03]}  Nc6 {[%clk 0:00:22]} 63. Kb5 {[%clk 0:00:03]}  Kd2 {[%clk 0:00:23]} 64. c5 {[%clk 0:00:02]}  Kc3 {[%clk 0:00:24]} 65. Ka4 {[%clk 0:00:03]}  Kd4 {[%clk 0:00:24]} 66. Kb5 {[%clk 0:00:03]}  Bd5 {[%clk 0:00:25]} 67. Ka4 {[%clk 0:00:03]}  Be4 {[%clk 0:00:22]} 68. Kb5 {[%clk 0:00:03]}  Bf3 {[%clk 0:00:23]} 69. Ka4 {[%clk 0:00:03]}  Kxc5 {[%clk 0:00:24]} 70. Kb3 {[%clk 0:00:03]}  Kb5 {[%clk 0:00:24]} 71. a4+ {[%clk 0:00:02]}  Kc5 {[%clk 0:00:25]} 72. Kc3 {[%clk 0:00:02]}  Nb4 {[%clk 0:00:25]} 73. Kb3 {[%clk 0:00:03]}  Kd4 {[%clk 0:00:26]} 74. Kb2 {[%clk 0:00:03]}  Bd5 {[%clk 0:00:27]} 75. Ka3 {[%clk 0:00:03]}  Kc3 {[%clk 0:00:28]} 1/2-1/2


[Site "https://www.chess.com"]

[Event "Titled Tuesday Blitz June 28 Early 2022"]
[White "Rom, Jasper"]
[Black "Mitrovic, Darko R"]
[WhiteFideId "2023733"]
[BlackFideId "927023"]
[WhiteElo "2233"]
[BlackElo "2150"]
[Result "0-1"]
[Round "06"]
[TimeControl "180+1"]
[Date "2022.06.28"]
[WhiteClock "0:00:01"]
[BlackClock "0:00:06"]

1. e4 {[%clk 0:03:00]}  e6 {[%clk 0:03:00]} 2. d4 {[%clk 0:03:00]}  d5 {[%clk 0:03:00]} 3. Bd3 {[%clk 0:03:00]}  Nf6 {[%clk 0:03:00]} 4. e5 {[%clk 0:03:00]}  Nfd7 {[%clk 0:03:00]} 5. Nf3 {[%clk 0:02:59]}  c5 {[%clk 0:03:00]} 6. c3 {[%clk 0:02:59]}  b6 {[%clk 0:02:56]} 7. Ng5 {[%clk 0:02:33]}  Ba6 {[%clk 0:02:34]} 8. Bxh7 {[%clk 0:02:28]}  Qe7 {[%clk 0:02:19]} 9. h4 {[%clk 0:02:17]}  Nc6 {[%clk 0:02:08]} 10. Qa4 {[%clk 0:02:14]}  Bb7 {[%clk 0:02:06]} 11. Bd3 {[%clk 0:02:09]}  O-O-O {[%clk 0:02:05]} 12. Ba6 {[%clk 0:01:43]}  Kb8 {[%clk 0:01:45]} 13. Bxb7 {[%clk 0:01:32]}  Kxb7 {[%clk 0:01:44]} 14. Nf3 {[%clk 0:01:23]}  f6 {[%clk 0:01:41]} 15. Bf4 {[%clk 0:01:18]}  fxe5 {[%clk 0:01:36]} 16. Bg5 {[%clk 0:01:17]}  Qe8 {[%clk 0:01:16]} 17. Bxd8 {[%clk 0:01:16]}  Qxd8 {[%clk 0:01:16]} 18. dxe5 {[%clk 0:01:12]}  Ndxe5 {[%clk 0:01:15]} 19. Nbd2 {[%clk 0:01:12]}  Nd3+ {[%clk 0:01:14]} 20. Ke2 {[%clk 0:01:07]}  Nxb2 {[%clk 0:01:09]} 21. Qb3 {[%clk 0:00:59]}  Nd3 {[%clk 0:01:01]} 22. Rad1 {[%clk 0:00:36]}  Nf4+ {[%clk 0:00:48]} 23. Kf1 {[%clk 0:00:35]}  Qf6 {[%clk 0:00:41]} 24. g3 {[%clk 0:00:31]}  Ng6 {[%clk 0:00:36]} 25. Kg2 {[%clk 0:00:31]}  Bd6 {[%clk 0:00:36]} 26. Ng5 {[%clk 0:00:21]}  Rf8 {[%clk 0:00:32]} 27. Ndf3 {[%clk 0:00:15]}  Nge5 {[%clk 0:00:29]} 28. c4 {[%clk 0:00:12]}  Nxc4 {[%clk 0:00:26]} 29. Rhe1 {[%clk 0:00:11]}  N6e5 {[%clk 0:00:25]} 30. Qc3 {[%clk 0:00:07]}  Nxf3 {[%clk 0:00:24]} 31. Qxf3 {[%clk 0:00:06]}  Qxf3+ {[%clk 0:00:24]} 32. Nxf3 {[%clk 0:00:06]}  Rf6 {[%clk 0:00:23]} 33. Ng5 {[%clk 0:00:05]}  Be5 {[%clk 0:00:16]} 34. f4 {[%clk 0:00:05]}  Bc3 {[%clk 0:00:16]} 35. Rxe6 {[%clk 0:00:05]}  Rxe6 {[%clk 0:00:15]} 36. Nxe6 {[%clk 0:00:05]}  Ne3+ {[%clk 0:00:15]} 37. Kf3 {[%clk 0:00:04]}  Nxd1 {[%clk 0:00:15]} 38. Ke2 {[%clk 0:00:04]}  Nb2 {[%clk 0:00:14]} 39. f5 {[%clk 0:00:03]}  Kc6 {[%clk 0:00:14]} 40. g4 {[%clk 0:00:03]}  Kd7 {[%clk 0:00:13]} 41. g5 {[%clk 0:00:03]}  Ke7 {[%clk 0:00:13]} 42. Nf4 {[%clk 0:00:02]}  Be5 {[%clk 0:00:09]} 43. Nxd5+ {[%clk 0:00:02]}  Kf7 {[%clk 0:00:08]} 44. Ne3 {[%clk 0:00:02]}  c4 {[%clk 0:00:06]} 45. Kd2 {[%clk 0:00:01]}  Bf4 {[%clk 0:00:06]} 0-1


[Site "https://www.chess.com"]

[Event "Titled Tuesday Blitz June 28 Early 2022"]
[White "Rustemov, Alexander"]
[Black "Kozlov, Oleg"]
[WhiteFideId "4119002"]
[BlackFideId "4104544"]
[WhiteElo "2735"]
[BlackElo "2132"]
[Result "1-0"]
[Round "06"]
[TimeControl "180+1"]
[Date "2022.06.28"]
[WhiteClock "0:00:15"]
[BlackClock "0:00:02"]

1. d4 {[%clk 0:03:00]}  f5 {[%clk 0:02:59]} 2. c4 {[%clk 0:03:00]}  Nf6 {[%clk 0:02:59]} 3. Nf3 {[%clk 0:03:01]}  g6 {[%clk 0:02:59]} 4. g3 {[%clk 0:03:01]}  Bg7 {[%clk 0:02:59]} 5. Bg2 {[%clk 0:03:02]}  O-O {[%clk 0:02:59]} 6. O-O {[%clk 0:03:02]}  d6 {[%clk 0:02:59]} 7. Nc3 {[%clk 0:03:02]}  Qe8 {[%clk 0:03:00]} 8. d5 {[%clk 0:02:56]}  Na6 {[%clk 0:02:59]} 9. Rb1 {[%clk 0:02:54]}  Bd7 {[%clk 0:02:59]} 10. b4 {[%clk 0:02:52]}  c5 {[%clk 0:02:53]} 11. dxc6 {[%clk 0:02:51]}  bxc6 {[%clk 0:02:52]} 12. b5 {[%clk 0:02:48]}  Nc7 {[%clk 0:02:43]} 13. Nd4 {[%clk 0:02:44]}  c5 {[%clk 0:02:41]} 14. Nc6 {[%clk 0:02:42]}  a6 {[%clk 0:02:38]} 15. a4 {[%clk 0:02:42]}  axb5 {[%clk 0:02:26]} 16. axb5 {[%clk 0:02:40]}  Ng4 {[%clk 0:02:07]} 17. Nd5 {[%clk 0:02:35]}  Nxd5 {[%clk 0:02:01]} 18. Qxd5+ {[%clk 0:02:33]}  Kh8 {[%clk 0:02:00]} 19. Bb2 {[%clk 0:02:16]}  Bxb2 {[%clk 0:01:59]} 20. Rxb2 {[%clk 0:02:16]}  Nf6 {[%clk 0:01:49]} 21. Qd3 {[%clk 0:02:13]}  Kg7 {[%clk 0:01:32]} 22. Qe3 {[%clk 0:02:12]}  Rf7 {[%clk 0:01:30]} 23. h3 {[%clk 0:02:03]}  h6 {[%clk 0:01:10]} 24. Rd1 {[%clk 0:02:02]}  g5 {[%clk 0:01:09]} 25. Qc3 {[%clk 0:01:50]}  Kg6 {[%clk 0:01:05]} 26. e3 {[%clk 0:01:48]}  Ne4 {[%clk 0:01:03]} 27. Qd3 {[%clk 0:01:44]}  Bxc6 {[%clk 0:01:01]} 28. bxc6 {[%clk 0:01:44]}  Qxc6 {[%clk 0:01:02]} 29. g4 {[%clk 0:01:44]}  e6 {[%clk 0:00:58]} 30. Rdb1 {[%clk 0:01:39]}  Ra6 {[%clk 0:00:47]} 31. gxf5+ {[%clk 0:01:33]}  exf5 {[%clk 0:00:47]} 32. Rb8 {[%clk 0:01:33]}  Rd7 {[%clk 0:00:43]} 33. Re8 {[%clk 0:01:28]}  Rb7 {[%clk 0:00:36]} 34. Rxb7 {[%clk 0:01:25]}  Qxe8 {[%clk 0:00:33]} 35. Qd5 {[%clk 0:01:08]}  Nf6 {[%clk 0:00:30]} 36. Qd1 {[%clk 0:01:02]}  Qe5 {[%clk 0:00:29]} 37. Rb1 {[%clk 0:00:56]}  g4 {[%clk 0:00:28]} 38. hxg4 {[%clk 0:00:55]}  Nxg4 {[%clk 0:00:28]} 39. Qe2 {[%clk 0:00:43]}  Qh2+ {[%clk 0:00:24]} 40. Kf1 {[%clk 0:00:43]}  Qe5 {[%clk 0:00:23]} 41. Rd1 {[%clk 0:00:42]}  Ra7 {[%clk 0:00:19]} 42. Qd2 {[%clk 0:00:40]}  Ra6 {[%clk 0:00:13]} 43. Ke2 {[%clk 0:00:38]}  Rb6 {[%clk 0:00:13]} 44. Rc1 {[%clk 0:00:36]}  Rb2 {[%clk 0:00:13]} 45. Rc2 {[%clk 0:00:36]}  Rb4 {[%clk 0:00:13]} 46. Bf3 {[%clk 0:00:35]}  Nf6 {[%clk 0:00:13]} 47. Qd3 {[%clk 0:00:33]}  Rb2 {[%clk 0:00:11]} 48. Kf1 {[%clk 0:00:29]}  Rb1+ {[%clk 0:00:11]} 49. Ke2 {[%clk 0:00:29]}  Rb2 {[%clk 0:00:11]} 50. Ke1 {[%clk 0:00:29]}  Rb4 {[%clk 0:00:10]} 51. Rd2 {[%clk 0:00:28]}  Rb6 {[%clk 0:00:09]} 52. Ke2 {[%clk 0:00:28]}  h5 {[%clk 0:00:08]} 53. Kf1 {[%clk 0:00:25]}  Qh2 {[%clk 0:00:06]} 54. Ke2 {[%clk 0:00:23]}  Qe5 {[%clk 0:00:05]} 55. Rd1 {[%clk 0:00:23]}  Ng4 {[%clk 0:00:05]} 56. Rd2 {[%clk 0:00:19]}  Rb2 {[%clk 0:00:05]} 57. Bxg4 {[%clk 0:00:17]}  hxg4 {[%clk 0:00:04]} 58. Kf1 {[%clk 0:00:16]}  Rb4 {[%clk 0:00:03]} 59. Qxd6+ {[%clk 0:00:16]}  Qxd6 {[%clk 0:00:03]} 60. Rxd6+ {[%clk 0:00:16]}  Kg5 {[%clk 0:00:04]} 61. Kg2 {[%clk 0:00:17]}  Rxc4 {[%clk 0:00:04]} 62. Rc6 {[%clk 0:00:17]}  Rc2 {[%clk 0:00:05]} 63. Kg3 {[%clk 0:00:18]}  c4 {[%clk 0:00:05]} 64. f4+ {[%clk 0:00:18]}  gxf3 {[%clk 0:00:05]} 65. Kxf3 {[%clk 0:00:18]}  c3 {[%clk 0:00:06]} 66. e4 {[%clk 0:00:18]}  f4 {[%clk 0:00:04]} 67. Rc5+ {[%clk 0:00:17]}  Kf6 {[%clk 0:00:04]} 68. Kxf4 {[%clk 0:00:17]}  Rc1 {[%clk 0:00:04]} 69. Ke3 {[%clk 0:00:17]}  c2 {[%clk 0:00:05]} 70. Kd2 {[%clk 0:00:18]}  Rg1 {[%clk 0:00:05]} 71. Kxc2 {[%clk 0:00:17]}  Rg4 {[%clk 0:00:04]} 72. Kd3 {[%clk 0:00:17]}  Rg3+ {[%clk 0:00:05]} 73. Kd4 {[%clk 0:00:17]}  Ke7 {[%clk 0:00:05]} 74. Rc6 {[%clk 0:00:18]}  Rg4 {[%clk 0:00:04]} 75. Kd5 {[%clk 0:00:18]}  Rg5+ {[%clk 0:00:04]} 76. e5 {[%clk 0:00:19]}  Kd7 {[%clk 0:00:05]} 77. Ra6 {[%clk 0:00:18]}  Rg4 {[%clk 0:00:05]} 78. Ra7+ {[%clk 0:00:19]}  Kd8 {[%clk 0:00:05]} 79. Kd6 {[%clk 0:00:19]}  Rg6+ {[%clk 0:00:05]} 80. e6 {[%clk 0:00:19]}  Kc8 {[%clk 0:00:05]} 81. Ra8+ {[%clk 0:00:18]}  Kb7 {[%clk 0:00:05]} 82. Rf8 {[%clk 0:00:18]}  Kb6 {[%clk 0:00:04]} 83. Kd7 {[%clk 0:00:17]}  Rg7+ {[%clk 0:00:04]} 84. e7 {[%clk 0:00:18]}  Kc5 {[%clk 0:00:02]} 85. Ke6 {[%clk 0:00:15]} 1-0


[Site "https://www.chess.com"]

[Event "Titled Tuesday Blitz June 28 Early 2022"]
[White "Saito, Vinicius"]
[Black "Magallanes, Rey Jomar"]
[WhiteFideId "2113384"]
[BlackFideId "5205948"]
[WhiteElo "2168"]
[BlackElo "2187"]
[Result "1-0"]
[Round "06"]
[TimeControl "180+1"]
[Date "2022.06.28"]
[WhiteClock "0:01:03"]
[BlackClock "0:01:10"]

1. e4 {[%clk 0:02:59]}  c5 {[%clk 0:02:59]} 2. Nf3 {[%clk 0:02:58]}  d6 {[%clk 0:02:58]} 3. Bb5+ {[%clk 0:02:56]}  Bd7 {[%clk 0:02:58]} 4. Qe2 {[%clk 0:02:56]}  Bxb5 {[%clk 0:02:57]} 5. Qxb5+ {[%clk 0:02:55]}  Qd7 {[%clk 0:02:58]} 6. Qe2 {[%clk 0:02:55]}  Nc6 {[%clk 0:02:57]} 7. c3 {[%clk 0:02:55]}  e6 {[%clk 0:02:56]} 8. O-O {[%clk 0:02:54]}  Nf6 {[%clk 0:02:57]} 9. d4 {[%clk 0:02:55]}  cxd4 {[%clk 0:02:56]} 10. cxd4 {[%clk 0:02:55]}  Be7 {[%clk 0:02:56]} 11. Nc3 {[%clk 0:02:54]}  O-O {[%clk 0:02:56]} 12. Rd1 {[%clk 0:02:54]}  Rac8 {[%clk 0:02:55]} 13. h3 {[%clk 0:02:52]}  a6 {[%clk 0:02:55]} 14. b3 {[%clk 0:02:47]}  b5 {[%clk 0:02:55]} 15. Bb2 {[%clk 0:02:46]}  b4 {[%clk 0:02:54]} 16. Na4 {[%clk 0:02:45]}  Qb7 {[%clk 0:02:53]} 17. Rac1 {[%clk 0:02:44]}  Na5 {[%clk 0:02:52]} 18. e5 {[%clk 0:02:25]}  dxe5 {[%clk 0:02:50]} 19. dxe5 {[%clk 0:02:24]}  Nd5 {[%clk 0:02:50]} 20. Qe4 {[%clk 0:02:21]}  Qb5 {[%clk 0:02:40]} 21. h4 {[%clk 0:02:18]}  Rc6 {[%clk 0:02:33]} 22. Nd4 {[%clk 0:02:14]}  Rxc1 {[%clk 0:02:32]} 23. Rxc1 {[%clk 0:02:12]}  Qb7 {[%clk 0:02:30]} 24. Nc5 {[%clk 0:01:57]}  Bxc5 {[%clk 0:02:28]} 25. Rxc5 {[%clk 0:01:56]}  Qb6 {[%clk 0:02:28]} 26. Qc2 {[%clk 0:01:53]}  g6 {[%clk 0:02:20]} 27. h5 {[%clk 0:01:52]}  Nf4 {[%clk 0:02:15]} 28. h6 {[%clk 0:01:47]}  Rd8 {[%clk 0:02:08]} 29. Rc8 {[%clk 0:01:42]}  Nd5 {[%clk 0:01:47]} 30. Nf3 {[%clk 0:01:30]}  Nf4 {[%clk 0:01:24]} 31. Ng5 {[%clk 0:01:20]}  Nd5 {[%clk 0:01:23]} 32. Ne4 {[%clk 0:01:18]}  Ne7 {[%clk 0:01:22]} 33. Rxd8+ {[%clk 0:01:15]}  Qxd8 {[%clk 0:01:21]} 34. Nd6 {[%clk 0:01:15]}  Nac6 {[%clk 0:01:20]} 35. Qe4 {[%clk 0:01:11]}  Qb6 {[%clk 0:01:18]} 36. Qh4 {[%clk 0:01:07]}  Nf5 {[%clk 0:01:15]} 37. Qf6 {[%clk 0:01:04]}  Nce7 {[%clk 0:01:10]} 38. Qxf7+ {[%clk 0:01:03]}  Kh8 {[%clk 0:01:10]} 39. Qf8+ {[%clk 0:01:02]}  Ng8 {[%clk 0:01:10]} 40. Nf7# {[%clk 0:01:03]} 1-0


[Site "https://www.chess.com"]

[Event "Titled Tuesday Blitz June 28 Early 2022"]
[White "Sanchez, Robert"]
[Black "Tatarinov, Dmitry"]
[WhiteFideId "2034360"]
[BlackFideId "24160067"]
[WhiteElo "2070"]
[BlackElo "2302"]
[Result "0-1"]
[Round "06"]
[TimeControl "180+1"]
[Date "2022.06.28"]
[WhiteClock "0:01:47"]
[BlackClock "0:02:11"]

1. e4 {[%clk 0:03:00]}  e5 {[%clk 0:02:58]} 2. Nf3 {[%clk 0:03:01]}  Nc6 {[%clk 0:02:58]} 3. Bb5 {[%clk 0:03:01]}  a6 {[%clk 0:02:57]} 4. Ba4 {[%clk 0:03:01]}  Nf6 {[%clk 0:02:57]} 5. d3 {[%clk 0:03:01]}  Bc5 {[%clk 0:02:55]} 6. Nc3 {[%clk 0:03:01]}  b5 {[%clk 0:02:55]} 7. Bb3 {[%clk 0:03:01]}  d6 {[%clk 0:02:55]} 8. Bg5 {[%clk 0:02:58]}  h6 {[%clk 0:02:55]} 9. Bh4 {[%clk 0:02:59]}  g5 {[%clk 0:02:56]} 10. Nxg5 {[%clk 0:02:59]}  hxg5 {[%clk 0:02:55]} 11. Bxg5 {[%clk 0:03:00]}  Be6 {[%clk 0:02:51]} 12. Nd5 {[%clk 0:02:55]}  Bxf2+ {[%clk 0:02:27]} 13. Kxf2 {[%clk 0:02:42]}  Nxe4+ {[%clk 0:02:26]} 14. dxe4 {[%clk 0:02:43]}  Qxg5 {[%clk 0:02:27]} 15. Nxc7+ {[%clk 0:02:44]}  Ke7 {[%clk 0:02:27]} 16. Nxa8 {[%clk 0:02:44]}  Nd4 {[%clk 0:02:19]} 17. Nc7 {[%clk 0:01:57]}  Qf4+ {[%clk 0:02:16]} 18. Ke1 {[%clk 0:01:54]}  Qe3+ {[%clk 0:02:16]} 19. Kf1 {[%clk 0:01:54]}  Rh6 {[%clk 0:02:11]} 20. g3 {[%clk 0:01:48]}  Rf6+ {[%clk 0:02:10]} 21. Kg2 {[%clk 0:01:47]}  Qf2# {[%clk 0:02:11]} 0-1


[Site "https://www.chess.com"]